bitfinex-derivatives/quotes_BTCF0:USTF0_20241122
["timestamp","ask_amount","ask_price","bid_price","bid_amount"]
[1732297065638,0.00410723,98930.0,98928.0,0.050483]
[1732297065824,0.00410723,98929.0,98925.0,0.06]
[1732297066030,0.00410723,98928.0,98925.0,0.06]
[1732297066338,0.00410723,98927.0,98926.0,0.050484]
[1732297066524,0.01055982,98927.0,98926.0,0.050484]
[1732297066726,0.00403287,98927.0,98925.0,0.06]
[1732297067029,0.10056,98932.0,98925.0,0.06]
[1732297067331,0.0104855,98931.0,98930.0,0.050482]
[1732297067728,0.0104855,98931.0,98925.0,0.06]
[1732297067925,0.050483,98928.0,98925.0,0.06]
[1732297068125,0.0104855,98927.0,98925.0,0.06]
[1732297068330,0.0104855,98926.0,98925.0,0.110484]
[1732297069033,0.050482,98930.0,98925.0,0.110484]
[1732297069231,0.01678927,98929.0,98925.0,0.06]
[1732297069436,0.01678927,98928.0,98927.0,0.050483]
[1732297071535,0.01678927,98928.0,98925.0,0.06]
[1732297071836,0.01678927,98927.0,98925.0,0.06]
[1732297072033,0.01678927,98926.0,98925.0,0.06]
[1732297072237,0.01678927,98926.0,98925.0,0.110485]
[1732297072435,0.73131327,98926.0,98925.0,0.06]
[1732297072638,0.050492,98910.0,98903.0,0.3608]
[1732297072942,0.16153555,98910.0,98904.0,0.050495]
[1732297073244,0.11104355,98910.0,98903.0,0.3608]
[1732297073439,0.01048355,98910.0,98909.0,0.18200951]
[1732297073639,0.00403213,98910.0,98909.0,0.18200951]
[1732297073831,0.3608,98913.0,98909.0,0.18200951]
[1732297074031,0.3608,98913.0,98911.0,0.050492]
[1732297074231,0.00342139,98912.0,98911.0,0.050492]
[1732297074442,0.00342139,98912.0,98909.0,0.13151651]
[1732297074639,0.3608,98913.0,98909.0,0.13151651]
[1732297074844,0.00340689,98912.0,98909.0,0.13151651]
[1732297075141,0.00340674,98911.0,98909.0,0.13151651]
[1732297075342,0.00340674,98910.0,98909.0,0.13151651]
[1732297076438,0.05389874,98910.0,98909.0,0.13151651]
[1732297077049,0.35721874,98910.0,98890.0,0.3608]
[1732297077232,0.0505,98896.0,98895.0,0.082]
[1732297078145,0.05386983,98896.0,98895.0,0.05]
[1732297078443,0.0505,98896.0,98895.0,0.05]
[1732297080139,0.36132001,98900.0,98899.0,0.050498]
[1732297080332,0.09033133,98920.0,98899.0,0.411298]
[1732297080539,0.00328801,98910.0,98909.0,0.050493]
[1732297080733,0.10056,98913.0,98909.0,0.100493]
[1732297080937,0.10056,98913.0,98909.0,0.05]
[1732297081347,0.05381793,98910.0,98909.0,0.05]
[1732297081542,0.050492,98910.0,98909.0,0.05]
[1732297084047,0.05379613,98910.0,98909.0,0.05]
[1732297084245,0.050492,98910.0,98909.0,0.05]
[1732297084547,0.05379551,98910.0,98909.0,0.05]
[1732297085050,0.050492,98910.0,98909.0,0.05]
[1732297085437,0.353812,98910.0,98909.0,0.05]
[1732297085752,0.30332,98910.0,98891.0,0.03952478]
[1732297085946,0.0505,98897.0,98896.0,0.100499]
[1732297086737,0.0505,98897.0,98896.0,0.05]
[1732297088036,0.150939,98898.0,98897.0,0.050499]
[1732297088242,0.050499,98897.0,98896.0,0.05]
[1732297088847,0.3608,98900.0,98896.0,0.05]
[1732297089056,0.3608,98900.0,98899.0,0.050498]
[1732297089948,0.3608,98900.0,98896.0,0.05]
[1732297090344,0.3608,98900.0,98899.0,0.050498]
[1732297090549,0.050494,98907.0,98899.0,0.050498]
[1732297090954,0.050494,98907.0,98896.0,0.09047324]
[1732297091158,0.050494,98907.0,98900.0,0.050497]
[1732297091348,0.46176001,98911.0,98896.0,0.09047324]
[1732297091549,0.14703317,98910.0,98896.0,0.09047324]
[1732297091854,0.46176001,98911.0,98896.0,0.09047324]
[1732297092157,0.050497,98901.0,98896.0,0.09047324]
[1732297092344,0.46124,98911.0,98896.0,0.09047324]
[1732297092544,0.10044,98910.0,98896.0,0.09047324]
[1732297092751,0.050493,98909.0,98896.0,0.14097224]
[1732297092955,0.050494,98906.0,98896.0,0.14097224]
[1732297093152,0.050494,98906.0,98897.0,0.050499]
[1732297093459,0.10044,98910.0,98901.0,0.050497]
[1732297093659,0.10044,98910.0,98896.0,0.09047324]
[1732297093860,0.050494,98907.0,98901.0,0.050497]
[1732297094053,0.3608,98911.0,98896.0,0.09047324]
[1732297094054,0.050496,98903.0,98896.0,0.14097224]
[1732297094248,0.10044,98909.0,98896.0,0.14097224]
[1732297094452,0.050495,98905.0,98896.0,0.14097224]
[1732297094656,0.150933,98909.0,98896.0,0.09047324]
[1732297094857,0.050493,98908.0,98901.0,0.050497]
[1732297095253,0.050493,98908.0,98902.0,0.050496]
[1732297095559,0.10044,98909.0,98903.0,0.0327]
[1732297095859,0.3608,98911.0,98903.0,0.0327]
[1732297096056,0.3608,98911.0,98904.0,0.0321]
[1732297096361,0.3608,98911.0,98908.0,0.050493]
[1732297096565,0.3608,98911.0,98910.0,0.050492]
[1732297096753,0.3608,98911.0,98908.0,0.08]
[1732297096953,0.3608,98911.0,98908.0,0.130493]
[1732297097152,0.3608,98911.0,98908.0,0.08]
[1732297097860,0.050493,98909.0,98908.0,0.08]
[1732297098162,0.3608,98911.0,98908.0,0.08]
[1732297098567,0.3608,98911.0,98908.0,0.12010597]
[1732297098970,0.46124,98923.0,98916.0,0.050489]
[1732297099159,0.46124,98923.0,98908.0,0.48090597]
[1732297099160,0.3608,98923.0,98919.0,0.050487]
[1732297099365,0.050487,98922.0,98919.0,0.28]
[1732297099569,0.3608,98923.0,98919.0,0.28]
[1732297099769,0.050487,98920.0,98919.0,0.28]
[1732297099964,0.3608,98923.0,98919.0,0.28]
[1732297100161,0.050487,98920.0,98919.0,0.28]
[1732297100561,0.3608,98923.0,98919.0,0.28]
[1732297101078,0.3608,98923.0,98922.0,0.050486]
[1732297101370,0.3608,98935.0,98929.0,0.050483]
[1732297101568,0.3608,98935.0,98929.0,0.15]
[1732297101874,0.3608,98935.0,98929.0,0.200483]
[1732297102065,0.3608,98935.0,98929.0,0.15]
[1732297102374,0.0519989,98930.0,98929.0,0.15]
[1732297103573,0.0015169,98930.0,98929.0,0.15]
[1732297104076,0.0519989,98930.0,98929.0,0.15]
[1732297106176,0.050492,98911.0,98908.0,0.050493]
[1732297106375,0.050492,98911.0,98909.0,0.06151637]
[1732297107276,0.3608,98912.0,98911.0,0.050492]
[1732297108176,0.050492,98911.0,98909.0,0.06151637]
[1732297111074,0.0309,98910.0,98909.0,0.00151637]
[1732297115278,0.0309,98910.0,98909.0,0.02151637]
[1732297115881,0.0309,98910.0,98909.0,0.02]
[1732297116687,0.0309,98910.0,98889.0,0.3608]
[1732297116884,0.0309,98910.0,98891.0,0.050502]
[1732297116885,0.050501,98894.0,98891.0,0.050502]
[1732297117083,0.3608,98897.0,98889.0,0.4308]
[1732297117084,0.46104,98897.0,98889.0,0.4314]
[1732297117382,0.050502,98891.0,98889.0,0.4308]
[1732297117587,0.46156001,98897.0,98889.0,0.4308]
[1732297117885,0.050502,98893.0,98891.0,0.050502]
[1732297118685,0.46156001,98897.0,98889.0,0.47136782]
[1732297118887,0.050502,98891.0,98889.0,0.10996782]
[1732297119089,0.30336,98890.0,98889.0,0.07]
[1732297119391,0.05051,98876.0,98865.0,0.050515]
[1732297119581,0.41131,98876.0,98868.0,0.04048851]
[1732297119881,0.41131,98876.0,98858.0,0.0311]
[1732297120080,0.41131,98876.0,98860.0,0.050518]
[1732297120279,0.41131,98876.0,98858.0,0.0311]
[1732297120481,0.41131,98876.0,98859.0,0.050518]
[1732297120685,0.41131,98876.0,98860.0,0.050518]
[1732297120885,0.41131,98876.0,98858.0,0.0311]
[1732297121084,0.41131,98876.0,98858.0,0.081619]
[1732297121281,0.45264225,98876.0,98858.0,0.0311]
[1732297121493,0.75604225,98876.0,98851.0,0.050522]
[1732297121886,0.75604225,98876.0,98845.0,0.0311]
[1732297122088,0.75604225,98876.0,98850.0,0.04113441]
[1732297122285,0.70553225,98876.0,98851.0,4.786e-05]
[1732297122589,0.050522,98852.0,98851.0,4.786e-05]
[1732297124806,0.09046534,98852.0,98851.0,4.786e-05]
[1732297125697,0.12156534,98852.0,98851.0,4.786e-05]
[1732297127193,0.12156534,98852.0,98810.0,0.09796053]
[1732297127194,0.68972335,98852.0,98800.0,0.20028]
[1732297127493,0.050542,98813.0,98812.0,0.161842]
[1732297127891,0.050542,98813.0,98812.0,0.15258671]
[1732297128291,0.050542,98813.0,98812.0,0.10258671]
[1732297128798,0.050542,98813.0,98812.0,0.11258671]
[1732297129000,0.41134,98818.0,98817.0,0.05054]
[1732297129300,0.41134,98818.0,98817.0,0.09054]
[1732297129691,0.41134,98818.0,98817.0,0.04]
[1732297132590,0.050542,98813.0,98812.0,0.0613]
[1732297132797,0.150862,98813.0,98812.0,0.0613]
[1732297133005,0.150862,98813.0,98812.0,0.0306]
[1732297135108,0.3608,98816.0,98812.0,0.0306]
[1732297135109,0.46112,98816.0,98815.0,0.050541]
[1732297135298,0.3608,98816.0,98815.0,0.050541]
[1732297135604,0.3108,98816.0,98815.0,0.354141]
[1732297136197,0.3108,98816.0,98815.0,0.050541]
[1732297136593,0.3108,98816.0,98815.0,0.09039803]
[1732297136902,0.3108,98816.0,98815.0,0.39399803]
[1732297138106,0.3108,98816.0,98815.0,0.09039803]
[1732297138307,0.3108,98816.0,98815.0,0.39399803]
[1732297138602,0.3108,98816.0,98815.0,0.34345703]
[1732297138810,0.3108,98816.0,98815.0,0.39399803]
[1732297139004,0.36134,98816.0,98815.0,0.03985703]
[1732297139194,0.3108,98816.0,98812.0,0.0606]
[1732297139501,0.050542,98813.0,98812.0,0.0606]
[1732297139899,0.050542,98813.0,98812.0,0.10019848]
[1732297141097,0.050542,98813.0,98812.0,0.0606]
[1732297142102,0.050542,98813.0,98812.0,0.111142]
[1732297142304,0.050542,98813.0,98812.0,0.0606]
[1732297145001,0.050542,98813.0,98812.0,0.111142]
[1732297145201,0.050542,98813.0,98812.0,0.0606]
[1732297145804,0.050542,98813.0,98812.0,0.0306]
[1732297146306,0.05369918,98813.0,98812.0,0.0306]
[1732297146503,0.15385918,98813.0,98812.0,0.0306]
[1732297146804,0.15385898,98813.0,98812.0,0.0306]
[1732297146999,0.150702,98813.0,98812.0,0.0306]
[1732297147202,0.15385916,98813.0,98812.0,0.0306]
[1732297148099,0.15891081,98813.0,98812.0,0.0306]
[1732297149798,0.15891081,98813.0,98812.0,0.0406]
[1732297151213,0.16522523,98813.0,98812.0,0.0406]
[1732297151409,0.15891081,98813.0,98812.0,0.0406]
[1732297151607,0.150702,98813.0,98812.0,0.0406]
[1732297151808,0.15891091,98813.0,98812.0,0.0406]
[1732297152198,0.16522545,98813.0,98812.0,0.0406]
[1732297152507,0.1652255,98813.0,98812.0,0.0306]
[1732297153209,0.050548,98801.0,98800.0,0.1]
[1732297153515,0.51002537,98801.0,98800.0,0.15]
[1732297154013,0.41955691,98801.0,98800.0,0.15]
[1732297154213,0.51002537,98801.0,98800.0,0.15]
[1732297154411,0.41955691,98801.0,98800.0,0.15]
[1732297154614,0.51638952,98801.0,98800.0,0.15]
[1732297154912,0.42587164,98801.0,98800.0,0.15]
[1732297155210,0.41955691,98801.0,98800.0,0.1]
[1732297155414,0.41955745,98801.0,98800.0,0.1]
[1732297155612,0.46577131,98801.0,98800.0,0.1]
[1732297156309,0.45945603,98801.0,98800.0,0.1]
[1732297156513,0.51975745,98801.0,98800.0,0.1]
[1732297156707,0.51975745,98801.0,98800.0,0.12]
[1732297161809,0.51975745,98801.0,98800.0,0.170549]
[1732297162016,0.51975745,98801.0,98800.0,0.12]
[1732297162214,0.41450548,98801.0,98800.0,0.170549]
[1732297162520,0.411348,98801.0,98800.0,0.170549]
[1732297162717,0.511548,98801.0,98800.0,0.170549]
[1732297162913,0.511548,98801.0,98800.0,0.21111668]
[1732297163109,0.461,98801.0,98800.0,0.21111668]
[1732297163416,0.3608,98801.0,98800.0,0.21111668]
[1732297163621,0.411348,98801.0,98800.0,0.21111668]
[1732297164006,0.3608,98801.0,98800.0,0.21111668]
[1732297164208,0.3608,98801.0,98800.0,0.51475668]
[1732297164608,0.411348,98801.0,98800.0,0.51475668]
[1732297164814,0.411348,98801.0,98800.0,0.16056768]
[1732297165409,0.411348,98801.0,98800.0,0.21111668]
[1732297165613,0.3608,98801.0,98800.0,0.21111668]
[1732297165819,0.3608,98801.0,98800.0,0.51475668]
[1732297166813,0.1002,98813.0,98800.0,0.51475668]
[1732297166814,0.050546,98806.0,98800.0,0.46420768]
[1732297167020,0.3608,98806.0,98805.0,0.050546]
[1732297167915,0.3608,98806.0,98805.0,0.354186]
[1732297168116,0.3108,98816.0,98815.0,0.050541]
[1732297168320,0.3108,98816.0,98815.0,0.400541]
[1732297168719,0.36134,98816.0,98815.0,0.35]
[1732297172524,0.050548,98801.0,98800.0,0.150549]
[1732297172717,0.411348,98801.0,98800.0,0.200549]
[1732297172918,0.3608,98801.0,98800.0,0.200549]
[1732297173120,0.411348,98801.0,98800.0,0.200549]
[1732297173630,0.411348,98801.0,98800.0,0.15]
[1732297175827,0.411348,98801.0,98800.0,0.200549]
[1732297176522,0.3608,98801.0,98800.0,0.200549]
[1732297176923,0.3608,98801.0,98800.0,0.504189]
[1732297178127,0.3608,98801.0,98800.0,0.200549]
[1732297178316,0.3608,98801.0,98800.0,0.504189]
[1732297178925,0.3108,98816.0,98800.0,0.504189]
[1732297178926,0.050541,98815.0,98811.0,0.050543]
[1732297179116,0.3108,98816.0,98812.0,0.0326]
[1732297179320,0.3108,98816.0,98813.0,0.050541]
[1732297179515,0.3108,98816.0,98813.0,0.3036]
[1732297179727,0.3108,98816.0,98815.0,0.050541]
[1732297179923,0.3108,98816.0,98815.0,0.354141]
[1732297181026,0.3108,98816.0,98815.0,0.39503235]
[1732297181424,0.3108,98816.0,98815.0,0.09143235]
[1732297181628,0.3108,98816.0,98815.0,0.39503235]
[1732297183233,0.3108,98816.0,98815.0,0.09143235]
[1732297183729,0.3108,98816.0,98815.0,0.39503235]
[1732297183927,0.3108,98816.0,98815.0,0.09143235]
[1732297184121,0.3108,98816.0,98815.0,0.39503235]
[1732297184823,0.3108,98816.0,98815.0,0.09143235]
[1732297185024,0.3108,98816.0,98815.0,0.39503235]
[1732297185530,0.3108,98816.0,98815.0,0.09143235]
[1732297186532,0.3108,98816.0,98815.0,0.39503235]
[1732297187232,0.3108,98816.0,98815.0,0.09143235]
[1732297189331,0.3608,98823.0,98822.0,0.050537]
[1732297189537,0.3608,98837.0,98822.0,0.48]
[1732297189736,0.05053,98837.0,98835.0,0.05053]
[1732297189938,0.050529,98839.0,98835.0,0.06]
[1732297190129,0.3608,98844.0,98835.0,0.06]
[1732297190437,0.3608,98844.0,98843.0,0.050527]
[1732297191841,0.08313688,98858.0,98843.0,0.39469627]
[1732297192031,0.03261788,98858.0,98857.0,0.050519]
[1732297192241,0.03261788,98858.0,98857.0,0.350519]
[1732297192837,0.08313688,98858.0,98857.0,0.3]
[1732297193037,0.03261788,98858.0,98857.0,0.350519]
[1732297194037,0.00151788,98858.0,98857.0,0.350519]
[1732297194334,0.00151788,98858.0,98857.0,0.39044109]
[1732297194537,0.00151788,98858.0,98857.0,0.69392109]
[1732297195029,0.0633,98873.0,98857.0,0.69392109]
[1732297195236,0.050519,98858.0,98857.0,0.33992209]
[1732297197340,0.09796053,98870.0,98857.0,0.33992209]
[1732297197545,0.0633,98873.0,98857.0,0.33992209]
[1732297198039,0.050519,98858.0,98857.0,0.33992209]
[1732297198539,0.050518,98859.0,98857.0,0.39044109]
[1732297198840,0.050516,98863.0,98860.0,0.050518]
[1732297199140,0.0633,98873.0,98860.0,0.050518]
[1732297199141,0.1,98872.0,98860.0,0.050518]
[1732297199338,0.050516,98864.0,98860.0,0.050518]
[1732297199848,0.1633,98873.0,98860.0,0.050518]
[1732297200036,0.1633,98873.0,98861.0,0.050517]
[1732297200239,0.050517,98862.0,98861.0,0.050517]
[1732297200536,0.050516,98864.0,98860.0,0.050517]
[1732297200733,0.1633,98873.0,98857.0,0.33992209]
[1732297201045,0.1633,98873.0,98860.0,0.09796053]
[1732297201343,0.0325,98873.0,98860.0,0.09796053]
[1732297201540,0.0316,98886.0,98869.0,0.3608]
[1732297201743,0.0316,98886.0,98870.0,0.09796053]
[1732297202141,0.0316,98886.0,98880.0,0.050507]
[1732297202452,0.0316,98886.0,98881.0,0.050507]
[1732297202940,0.050505,98885.0,98881.0,0.050507]
[1732297203140,0.050507,98883.0,98881.0,0.050507]
[1732297203650,0.0316,98886.0,98884.0,0.050505]
[1732297203842,0.0316,98886.0,98880.0,0.06]
[1732297203843,0.0316,98886.0,98880.0,0.09999834]
[1732297204848,0.050506,98883.0,98882.0,0.050507]
[1732297205037,0.0316,98886.0,98880.0,0.09999834]
[1732297205345,0.0312,98889.0,98885.0,0.3608]
[1732297205646,0.0312,98889.0,98887.0,0.050504]
[1732297205847,0.0312,98889.0,98888.0,0.050504]
[1732297207447,0.081703,98889.0,98888.0,0.050504]
[1732297207646,0.0312,98889.0,98888.0,0.050504]
[1732297209447,7.093e-05,98890.0,98889.0,0.050503]
[1732297209945,0.050505,98886.0,98885.0,0.411305]
[1732297210148,7.093e-05,98890.0,98889.0,0.050503]
[1732297210455,0.050504,98888.0,98885.0,0.411305]
[1732297210641,7.093e-05,98890.0,98885.0,0.3608]
[1732297210843,7.093e-05,98890.0,98889.0,0.050503]
[1732297211948,7.093e-05,98890.0,98889.0,0.411303]
[1732297212653,7.093e-05,98890.0,98889.0,0.511063]
[1732297212951,0.11530014,98920.0,98913.0,0.050491]
[1732297213151,0.0635,98919.0,98918.0,0.050488]
[1732297214050,0.0635,98919.0,98918.0,0.05053157]
[1732297214747,0.0635,98919.0,98918.0,0.41133157]
[1732297215756,0.0635,98919.0,98918.0,4.357e-05]
[1732297216451,0.0316,98919.0,98918.0,0.05053157]
[1732297216650,0.00151684,98925.0,98918.0,4.357e-05]
[1732297216852,0.00151684,98925.0,98922.0,0.050486]
[1732297218063,0.00151684,98925.0,98918.0,4.357e-05]
[1732297218064,0.05200184,98925.0,98918.0,4.357e-05]
[1732297218362,0.00151684,98925.0,98918.0,4.357e-05]
[1732297218555,0.05200184,98925.0,98919.0,0.050488]
[1732297218857,0.050485,98924.0,98919.0,0.050488]
[1732297219061,0.00151684,98925.0,98921.0,0.050487]
[1732297219955,0.00151684,98925.0,98918.0,4.357e-05]
[1732297220261,0.050488,98919.0,98918.0,4.357e-05]
[1732297220463,0.050488,98919.0,98918.0,0.36084357]
[1732297220959,0.05200184,98925.0,98918.0,0.36084357]
[1732297221146,0.050486,98922.0,98918.0,0.36084357]
[1732297221755,0.050488,98920.0,98918.0,0.36084357]
[1732297222159,0.050488,98920.0,98918.0,4.357e-05]
[1732297223146,0.0321,98919.0,98918.0,4.357e-05]
[1732297228752,0.082588,98919.0,98918.0,4.357e-05]
[1732297231253,0.082588,98919.0,98573.0,1.60413517]
[1732297231254,0.050493,98909.0,98889.0,0.3608]
[1732297231454,0.3608,98902.0,98889.0,0.4308]
[1732297231654,0.050503,98892.0,98891.0,0.050502]
[1732297232454,0.050499,98897.0,98896.0,0.050498]
[1732297232655,0.050496,98903.0,98902.0,0.050495]
[1732297232855,0.050496,98903.0,98902.0,0.420495]
[1732297233166,0.050496,98903.0,98902.0,0.37]
[1732297234762,0.050496,98903.0,98902.0,0.420496]
[1732297234959,0.050496,98903.0,98902.0,0.37]
[1732297236169,0.050496,98903.0,98902.0,0.420496]
[1732297237163,0.0308,98908.0,98907.0,0.050494]
[1732297237375,0.081293,98908.0,98907.0,0.050494]
[1732297237561,0.050496,98903.0,98902.0,0.37064]
[1732297237765,0.050496,98903.0,98902.0,0.421136]
[1732297237962,0.050496,98903.0,98902.0,0.37]
[1732297246858,0.3608,98910.0,98902.0,0.37]
[1732297247167,0.411292,98910.0,98909.0,0.050493]
[1732297247964,0.050495,98905.0,98904.0,0.050495]
[1732297248169,0.3608,98910.0,98902.0,0.3706]
[1732297248362,0.050496,98903.0,98902.0,0.37]
[1732297249375,0.09056366,98918.0,98902.0,0.37]
[1732297249376,0.0307,98911.0,98910.0,0.050492]
[1732297249570,0.09948,98950.0,98923.0,0.050486]
[1732297249869,0.050477,98941.0,98924.0,0.3608]
[1732297250260,0.0317,98945.0,98924.0,0.3608]
[1732297250871,0.09948,98943.0,98924.0,0.3608]
[1732297251970,0.050477,98941.0,98924.0,0.3608]
[1732297252382,0.09948,98943.0,98924.0,0.3608]
[1732297252571,0.050477,98941.0,98924.0,0.3608]
[1732297252973,0.04133388,98940.0,98924.0,0.40152858]
[1732297254376,0.09948,98943.0,98924.0,0.40152858]
[1732297254568,0.149956,98943.0,98924.0,0.40152858]
[1732297255372,0.09157987,98942.0,98924.0,0.40152858]
[1732297256470,0.050477,98941.0,98924.0,0.40152858]
[1732297256670,0.04110387,98942.0,98924.0,0.40152858]
[1732297256878,0.050477,98941.0,98924.0,0.40152858]
[1732297258477,0.14058387,98942.0,98924.0,0.40152858]
[1732297258779,0.050477,98940.0,98924.0,0.40152858]
[1732297259167,0.14058387,98942.0,98924.0,0.40152858]
[1732297259377,0.050479,98937.0,98924.0,0.40152858]
[1732297259572,0.050477,98941.0,98924.0,0.40152858]
[1732297259777,0.050478,98938.0,98924.0,0.40152858]
[1732297260375,0.050478,98938.0,98933.0,0.050481]
[1732297260573,0.050479,98936.0,98933.0,0.120481]
[1732297260871,0.05048,98934.0,98933.0,0.07]
[1732297261174,0.050488,98919.0,98918.0,0.3608]
[1732297261379,0.050485,98925.0,98918.0,0.4108]
[1732297261576,0.0307,98924.0,98918.0,0.461288]
[1732297261779,0.050488,98919.0,98918.0,0.4108]
[1732297262074,0.0307,98924.0,98918.0,0.4108]
[1732297262282,0.050486,98923.0,98919.0,0.050488]
[1732297262474,0.050487,98920.0,98919.0,0.050488]
[1732297262783,0.0307,98924.0,98923.0,0.050486]
[1732297262986,0.0307,98924.0,98918.0,0.4108]
[1732297263172,0.050488,98919.0,98918.0,0.05]
[1732297263773,0.081185,98924.0,98923.0,0.050486]
[1732297263979,0.07201844,98924.0,98918.0,0.41144]
[1732297264188,0.050487,98921.0,98920.0,0.050487]
[1732297264369,0.07201844,98924.0,98918.0,0.4114]
[1732297264574,0.07201844,98924.0,98922.0,0.050486]
[1732297264770,0.050486,98923.0,98922.0,0.050486]
[1732297265478,0.050488,98919.0,98918.0,0.461888]
[1732297265677,0.050488,98919.0,98918.0,0.461288]
[1732297267282,0.050488,98919.0,98918.0,0.3608]
[1732297267482,0.050488,98919.0,98910.0,0.40253615]
[1732297267483,0.510488,98919.0,98878.0,0.3608]
[1732297267687,0.3608,98900.0,98890.0,0.09796053]
[1732297267882,0.3608,98900.0,98891.0,0.0929]
[1732297268081,0.411297,98900.0,98899.0,0.050498]
[1732297268281,0.0505,98895.0,98891.0,0.0929]
[1732297268492,0.411298,98900.0,98899.0,0.050498]
[1732297268682,0.3608,98900.0,98894.0,0.0505]
[1732297268877,0.050502,98892.0,98891.0,0.4829]
[1732297269180,0.050502,98892.0,98891.0,0.52323775]
[1732297269580,0.0505,98896.0,98895.0,0.0505]
[1732297269781,0.050502,98892.0,98891.0,0.52323775]
[1732297269980,0.3608,98900.0,98891.0,0.52323775]
[1732297270188,0.050502,98893.0,98891.0,0.52323775]
[1732297270586,0.3608,98900.0,98891.0,0.52323775]
[1732297270587,0.050502,98892.0,98891.0,0.49193775]
[1732297270892,0.411302,98892.0,98891.0,0.39]
[1732297275088,0.050508,98880.0,98879.0,0.145408]
[1732297275388,0.050508,98880.0,98879.0,0.30656668]
[1732297278094,0.050508,98880.0,98879.0,0.25605868]
[1732297278484,0.050508,98880.0,98879.0,0.30656668]
[1732297279888,0.050508,98880.0,98879.0,0.25605868]
[1732297281985,0.050508,98880.0,98879.0,0.30656668]
[1732297283192,0.4014447,98884.0,98883.0,0.050506]
[1732297283496,0.3608,98893.0,98883.0,0.050506]
[1732297283786,0.3608,98893.0,98888.0,0.050504]
[1732297283787,0.050503,98889.0,98888.0,0.050504]
[1732297283991,0.3608,98893.0,98883.0,0.09796053]
[1732297283992,0.3608,98893.0,98890.0,0.050502]
[1732297284185,0.3608,98893.0,98890.0,0.22]
[1732297284385,0.3608,98893.0,98892.0,0.050502]
[1732297284690,0.050502,98891.0,98890.0,0.22]
[1732297285189,0.3608,98902.0,98893.0,0.050501]
[1732297285383,0.050501,98893.0,98890.0,0.22]
[1732297285988,0.050502,98892.0,98891.0,0.050502]
[1732297286293,0.3608,98902.0,98890.0,0.22]
[1732297286499,0.0505,98896.0,98894.0,0.0505]
[1732297286791,0.3608,98902.0,98894.0,0.0505]
[1732297286792,0.0505,98895.0,98894.0,0.0505]
[1732297286981,0.3608,98902.0,98890.0,0.22]
[1732297287181,0.3608,98902.0,98890.0,0.31796053]
[1732297287388,0.3608,98902.0,98890.0,0.22]
[1732297287389,0.3608,98891.0,98890.0,0.22]
[1732297287590,0.3608,98891.0,98883.0,0.03992804]
[1732297287885,0.411302,98891.0,98890.0,0.32]
[1732297288084,0.411302,98891.0,98890.0,0.35]
[1732297289196,0.411302,98891.0,98890.0,0.400503]
[1732297289789,0.411302,98891.0,98890.0,0.35]
[1732297290300,0.411302,98891.0,98890.0,0.400503]
[1732297290301,0.3608,98891.0,98890.0,0.400503]
[1732297290692,0.411302,98891.0,98890.0,0.400503]
[1732297291987,0.411302,98891.0,98890.0,0.35]
[1732297292188,0.45163368,98891.0,98890.0,0.35]
[1732297292489,0.45163468,98891.0,98885.0,0.050505]
[1732297292690,0.050507,98882.0,98881.0,0.050507]
[1732297293390,0.050504,98887.0,98886.0,0.050504]
[1732297294598,0.04103963,98895.0,98881.0,0.0316]
[1732297294787,0.050498,98900.0,98881.0,0.3924]
[1732297295092,0.050496,98903.0,98902.0,0.050496]
[1732297295295,0.3608,98911.0,98902.0,0.05]
[1732297295603,0.09892,98921.0,98902.0,0.05]
[1732297295793,0.050494,98907.0,98906.0,0.050494]
[1732297296498,0.3608,98915.0,98903.0,0.0972]
[1732297296694,0.3608,98915.0,98904.0,0.050495]
[1732297296888,0.050491,98912.0,98903.0,0.0972]
[1732297297092,0.3608,98915.0,98903.0,0.0972]
[1732297297093,0.3608,98915.0,98903.0,0.13744427]
[1732297297288,0.050494,98908.0,98907.0,0.050493]
[1732297298205,0.04146257,98926.0,98907.0,0.7216]
[1732297298395,0.00151706,98926.0,98925.0,0.411285]
[1732297298697,0.050474,98946.0,98931.0,0.050482]
[1732297298900,0.3608,98949.0,98934.0,0.3608]
[1732297299088,0.050476,98943.0,98931.0,0.050481]
[1732297299293,0.3608,98949.0,98931.0,0.050481]
[1732297299493,0.050477,98941.0,98931.0,0.050481]
[1732297299700,0.050477,98941.0,98932.0,0.050481]
[1732297300206,0.40141612,98949.0,98934.0,0.05048]
[1732297300400,0.050475,98944.0,98934.0,0.05048]
[1732297300601,0.050476,98943.0,98934.0,0.05048]
[1732297301497,0.3608,98940.0,98925.0,0.09059594]
[1732297301800,0.3608,98940.0,98912.0,0.3608]
[1732297301801,0.050491,98913.0,98912.0,0.3608]
[1732297302603,0.19688053,98922.0,98912.0,0.3608]
[1732297302604,0.149407,98922.0,98912.0,0.3608]
[1732297302800,0.09892,98922.0,98912.0,0.4808]
[1732297303101,0.09892,98922.0,98921.0,0.050487]
[1732297303604,0.1494,98935.0,98921.0,0.3608]
[1732297303905,0.050481,98932.0,98926.0,0.050484]
[1732297304101,0.050481,98932.0,98926.0,0.12]
[1732297304301,0.09892,98935.0,98928.0,0.050483]
[1732297304502,0.050482,98930.0,98928.0,0.050483]
[1732297304703,0.0407421,98937.0,98928.0,0.1]
[1732297304910,0.3608,98932.0,98928.0,0.150483]
[1732297305407,0.411281,98932.0,98928.0,0.150483]
[1732297305712,0.050482,98930.0,98929.0,0.050483]
[1732297307205,0.050483,98929.0,98928.0,0.1]
[1732297308109,0.050483,98929.0,98928.0,0.150483]
[1732297309404,0.411281,98932.0,98931.0,0.050482]
[1732297311013,0.050483,98929.0,98928.0,0.150483]
[1732297311912,0.050483,98929.0,98928.0,0.1]
[1732297312112,0.353723,98929.0,98928.0,0.1]
[1732297312304,0.353723,98929.0,98910.0,0.3608]